bitfinex-derivatives/quotes_ETHF0:USTF0_20241229
["timestamp","ask_amount","ask_price","bid_price","bid_amount"]
[1735451635299,4.6550325,3387.3,3387.2,0.29574]
[1735451636510,3.49040302,3387.3,3387.2,5.19807296]
[1735451638006,3.49040302,3387.4,3387.3,0.29573]
[1735451638300,3.49040302,3387.4,3387.3,4.54951646]
[1735451647918,3.49040302,3387.4,3387.3,1.34171646]
[1735451648111,3.49040302,3387.4,3387.3,4.54951646]
[1735451649617,3.49040302,3387.4,3387.3,5.01021646]
[1735451653815,3.49040302,3387.4,3387.3,3.50353]
[1735451654118,3.49040302,3387.4,3387.3,4.54951646]
[1735451658618,3.49040302,3387.5,3387.4,0.29572]
[1735451659321,3.49040302,3387.5,3387.4,0.76272]
[1735451661521,3.92900302,3387.6,3387.5,0.29571]
[1735451665623,0.4386,3387.6,3387.5,0.29571]
[1735451668725,5.0936325,3387.6,3387.5,0.29571]
[1735451674028,0.4386,3387.6,3387.5,0.74781]
[1735451678520,10.22111311,3387.6,3387.5,0.74781]
[1735451680139,4.40206296,3387.6,3387.5,0.74781]
[1735451681337,0.4386,3387.6,3387.5,0.74781]
[1735451682538,4.40206296,3387.6,3387.5,0.74781]
[1735451683545,10.22236239,3387.6,3387.5,0.74781]
[1735451691254,10.22236239,3387.6,3387.5,3.95561]
[1735451694153,10.22236239,3387.6,3387.5,0.74781]
[1735451694353,10.22236239,3387.6,3387.5,3.95561]
[1735451696754,10.22236239,3387.6,3387.5,0.74781]
[1735451696959,10.22236239,3387.6,3387.5,3.95561]
[1735451702761,10.22236239,3387.6,3387.5,0.74781]
[1735451704666,10.22236239,3387.6,3387.5,5.39956833]
[1735451707268,10.22236239,3387.6,3387.5,6.44555479]
[1735451707860,4.40206296,3387.6,3387.5,6.44555479]
[1735451708865,10.22236239,3387.6,3387.5,6.44555479]
[1735451711367,10.22236239,3387.6,3387.5,1.79379646]
[1735451716882,10.22236239,3387.6,3387.5,1.34169646]
[1735451722179,10.22236239,3387.6,3387.5,6.46075479]
[1735451727086,4.40206296,3387.6,3387.5,6.46075479]
[1735451728889,10.22236239,3387.6,3387.5,6.46075479]
[1735451730087,10.22236239,3387.6,3387.5,9.66855479]
[1735451734985,4.40206296,3387.6,3387.5,9.66855479]
[1735451736494,10.22236239,3387.6,3387.5,9.66855479]
[1735451741994,10.22236239,3387.6,3387.5,6.46075479]
[1735451742193,10.22236239,3387.6,3387.5,9.66855479]
[1735451754317,10.22236239,3387.6,3387.5,5.01679646]
[1735451755712,10.22236239,3387.6,3387.5,9.66855479]
[1735451755919,10.22236239,3387.6,3387.5,6.46075479]
[1735451756120,10.22236239,3387.6,3387.5,9.66855479]
[1735451758819,10.22236239,3387.6,3387.5,6.46075479]
[1735451759118,10.22236239,3387.6,3387.5,9.66855479]
[1735451762926,10.22236239,3387.6,3387.5,9.20125479]
[1735451764520,10.22236239,3387.6,3387.5,4.54949646]
[1735451766125,10.22236239,3387.6,3387.5,1.34169646]
[1735451773426,10.22236239,3387.6,3387.5,1.77339646]
[1735451777337,10.22236239,3387.6,3387.5,6.42515479]
[1735451781534,10.22236239,3387.6,3387.5,9.63295479]
[1735451782137,10.22236239,3387.6,3387.5,6.42515479]
[1735451782435,10.22236239,3387.6,3387.5,9.63295479]
[1735451787042,10.22236239,3387.6,3387.5,4.98119646]
[1735451788339,4.40206296,3387.6,3387.5,4.98119646]
[1735451789645,0.4386,3387.6,3387.5,4.98119646]
[1735451790647,10.22387515,3387.6,3387.5,4.98119646]
[1735451791747,10.22387515,3387.6,3387.5,3.93521]
[1735451791947,10.22387515,3387.6,3387.5,4.98119646]
[1735451792143,4.40206296,3387.6,3387.5,4.98119646]
[1735451793347,0.4386,3387.6,3387.5,4.98119646]
[1735451794660,10.22353432,3387.6,3387.5,4.98119646]
[1735451803056,4.40206296,3387.6,3387.5,4.98119646]
[1735451804253,0.4386,3387.6,3387.5,4.98119646]
[1735451805858,4.40206296,3387.6,3387.5,4.98119646]
[1735451806054,4.40206296,3387.6,3387.5,1.77339646]
[1735451807660,4.40206296,3387.6,3387.5,1.34169646]
[1735451813667,4.40206296,3387.6,3387.5,1.78969646]
[1735451815363,10.22274124,3387.6,3387.5,1.78969646]
[1735451815763,9.78414124,3387.6,3387.5,1.78969646]
[1735451816371,5.82067828,3387.7,3387.5,6.14574479]
[1735451816575,5.82067828,3387.7,3387.6,1.34169646]
[1735451817666,9.78414124,3387.7,3387.6,1.34169646]
[1735451819060,5.82067828,3387.7,3387.6,1.34169646]
[1735451820061,9.78414124,3387.7,3387.6,1.34169646]
[1735451821569,5.82067828,3387.7,3387.6,1.34169646]
[1735451822963,9.78414124,3387.7,3387.6,1.34169646]
[1735451823773,9.78414124,3387.7,3387.6,4.54949646]
[1735451824467,5.82067828,3387.7,3387.6,4.54949646]
[1735451825871,9.78414124,3387.7,3387.6,4.54949646]
[1735451827075,5.82067828,3387.7,3387.6,4.54949646]
[1735451828471,9.78414124,3387.7,3387.6,4.54949646]
[1735451829676,5.82067828,3387.7,3387.6,4.54949646]
[1735451830878,9.78414124,3387.7,3387.6,4.54949646]
[1735451832278,5.82067828,3387.7,3387.6,4.54949646]
[1735451833579,9.78414124,3387.7,3387.6,4.54949646]
[1735451835178,5.82067828,3387.7,3387.6,4.54949646]
[1735451836175,9.78414124,3387.7,3387.6,4.54949646]
[1735451836370,9.78414124,3387.7,3387.6,1.34169646]
[1735451839179,9.78414124,3387.7,3387.6,4.54949646]
[1735451843882,3.96346296,3387.7,3387.6,4.54949646]
[1735451845183,0.4644,3387.9,3387.6,4.25378646]
[1735451845384,0.4644,3387.9,3387.7,0.29569]
[1735451845576,0.4644,3387.9,3387.6,4.25378646]
[1735451845777,0.4644,3387.9,3387.8,0.29569]
[1735451846781,4.42786296,3387.9,3387.8,0.29569]
[1735451866390,4.42786296,3387.9,3387.6,1.04598646]
[1735451866695,0.29569,3387.8,3387.7,0.29569]
[1735451867997,3.96346296,3387.8,3387.7,0.29569]
[1735451894517,3.96346296,3387.8,3387.7,0.74029]
[1735451899523,3.96346296,3387.8,3387.7,3.94809]
[1735451900719,3.96346296,3387.8,3387.7,4.99407646]
[1735451901925,4.65525464,3387.8,3387.7,16.87221066]
[1735451903129,4.65525464,3387.9,3387.7,9.60271752]
[1735451903425,4.65525464,3387.9,3387.8,2.85446292]
[1735451903627,4.65525464,3387.9,3387.8,1.80847646]
[1735451905627,4.65525464,3388.0,3387.9,0.29568]
[1735451905826,4.65525464,3388.0,3387.9,2.81685292]
[1735451909740,4.65525464,3388.0,3387.9,1.77086646]
[1735451910837,4.65525464,3388.0,3387.9,4.97866646]
[1735451912036,4.65525464,3388.0,3387.9,1.77086646]
[1735451912236,5.52445464,3388.1,3388.0,0.29567]
[1735451913538,4.82882924,3388.1,3388.0,0.29567]
[1735451914640,0.8692,3388.1,3388.0,0.29567]
[1735451915840,4.82882924,3388.1,3388.0,0.29567]
[1735451923949,0.8692,3388.1,3388.0,0.29567]
[1735451934757,4.82871521,3388.1,3388.0,0.29567]
[1735451938759,10.64778351,3388.1,3388.0,0.29567]
[1735451941557,10.64778351,3388.1,3388.0,1.34165646]
[1735451944259,4.82871521,3388.1,3388.0,1.34165646]
[1735451944866,4.82871521,3388.1,3388.0,1.77165646]
[1735451945662,0.8692,3388.1,3388.0,1.77165646]
[1735451947065,4.82871521,3388.1,3388.0,1.77165646]
[1735451947254,0.8692,3388.1,3388.0,1.77165646]
[1735451953158,4.83406498,3388.1,3388.0,1.77165646]
[1735451953361,4.39456498,3388.1,3388.0,1.77165646]
[1735451954770,10.21434354,3388.1,3388.0,1.77165646]
[1735451960867,4.39456498,3388.1,3388.0,1.77165646]
[1735451962368,0.4297,3388.1,3388.0,1.77165646]
[1735451963575,4.39456498,3388.1,3388.0,1.77165646]
[1735451964369,4.39456498,3388.1,3387.9,3.2078]
[1735451964571,4.69023498,3388.1,3387.9,3.2078]
[1735451964775,0.896,3388.0,3387.9,3.2078]
[1735451964975,1.19167,3388.0,3387.9,3.2078]
[1735451966176,12.13975479,3388.0,3387.9,3.2078]
[1735451967476,18.48038787,3388.0,3387.9,3.2078]
[1735451968772,12.13975479,3388.0,3387.9,3.2078]
[1735451969372,12.13975479,3388.0,3387.9,3.50348]
[1735451969877,12.13975479,3388.0,3387.9,0.29568]
[1735451970581,7.87921981,3388.0,3387.9,0.29568]
[1735451971076,8.17488981,3388.0,3387.9,0.29568]
[1735451971679,12.13975479,3388.0,3387.9,0.29568]
[1735451973174,4.86086498,3388.0,3387.9,0.29568]
[1735451973570,3.96486498,3388.0,3387.9,0.29568]
[1735451973775,3.96486498,3388.0,3387.9,1.60758]
[1735451976782,3.96486498,3388.0,3387.9,4.81538]
[1735451978086,3.96486498,3388.0,3387.9,5.86136646]
[1735451978584,1.70675093,3388.0,3387.9,10.86136646]
[1735451978882,1.70675093,3388.0,3387.9,5.86136646]
[1735451979382,1.70675093,3388.0,3387.9,5.41986646]
[1735451980380,2.32436094,3388.2,3387.9,17.05903333]
[1735451980578,2.32436094,3388.2,3388.1,0.29566]
[1735451981884,2.32436094,3388.3,3388.2,0.29565]
[1735451982183,2.32436094,3388.3,3388.2,1.34163646]
[1735451984786,2.32436094,3388.4,3388.3,0.29564]
[1735451985084,2.32436094,3388.4,3388.3,3.50344]
[1735451986984,2.32436094,3388.4,3388.3,0.29564]
[1735451987285,2.32436094,3388.4,3388.3,3.50344]
[1735451987985,2.32436094,3388.4,3388.3,0.29564]
[1735451988191,2.32436094,3388.4,3388.3,3.50344]
[1735451988583,2.32436094,3388.4,3388.3,4.25378646]
[1735451988884,2.32436094,3388.4,3388.3,4.54942646]
[1735451989785,5.55122189,3388.5,3388.3,4.54942646]
[1735451989984,5.55122189,3388.5,3388.3,1.34162646]
[1735451991585,5.55122189,3388.5,3388.3,1.04598646]
[1735451991786,5.55122189,3388.5,3388.4,0.29564]
[1735451993387,5.09962189,3388.5,3388.4,0.29564]
[1735451993591,5.09962189,3388.5,3388.4,1.19854]
[1735451995186,2.7724697,3388.5,3388.4,1.19854]
[1735452003001,2.3215697,3388.7,3388.6,0.29562]
[1735452003297,2.3215697,3388.7,3388.6,1.34160646]
[1735452004001,2.7843697,3388.8,3388.7,0.29561]
[1735452004196,2.7843697,3388.8,3388.7,3.50341]
[1735452004994,0.4628,3388.8,3388.7,3.50341]
[1735452006107,2.7843697,3388.8,3388.7,3.50341]
[1735452007096,0.4628,3388.8,3388.7,3.50341]
[1735452008700,0.4628,3388.8,3388.7,2.5063]
[1735452009503,0.7584,3388.8,3388.7,2.5063]
[1735452009705,3.94515456,3388.8,3388.7,2.5063]
[1735452011004,0.4628,3388.8,3388.7,2.5063]
[1735452011506,0.7584,3388.8,3388.5,0.29562]
[1735452011702,0.75592,3388.7,3388.5,0.29562]
[1735452011900,0.29562,3388.6,3388.5,0.29562]
[1735452012300,0.29563,3388.5,3388.4,1.04598646]
[1735452012606,0.73993,3388.5,3388.4,1.04598646]
[1735452014604,0.29565,3388.3,3388.2,1.04598646]
[1735452014805,0.29565,3388.3,3388.2,1.34163646]
[1735452015101,0.29565,3388.3,3387.9,1.34166646]
[1735452015102,0.29567,3388.1,3387.9,1.34166646]
[1735452015308,0.4261,3388.0,3387.9,1.34166646]
[1735452017209,0.72177,3388.0,3387.9,1.04598646]
[1735452019709,10.43247629,3388.0,3387.9,1.04598646]
[1735452023111,10.13680629,3388.0,3387.7,1.34167646]
[1735452023409,0.29569,3387.9,3387.7,1.34167646]
[1735452024007,0.29569,3387.8,3387.7,1.34167646]
[1735452025013,4.93660334,3387.8,3387.7,1.04598646]
[1735452025210,4.93660334,3387.8,3387.7,1.34168646]
[1735452026115,4.93660334,3387.8,3387.7,1.04598646]
[1735452026416,0.29569,3387.8,3387.7,1.04598646]
[1735452028220,0.74189,3387.8,3387.7,1.04598646]
[1735452028518,0.4462,3387.8,3387.7,1.04598646]
[1735452029115,3.92475093,3387.8,3387.7,1.04598646]
[1735452030519,3.92475093,3387.8,3387.6,0.2957]
[1735452031216,4.22044093,3387.8,3387.6,0.2957]
[1735452031721,2.3186514,3387.7,3387.6,0.2957]
[1735452032721,2.3186514,3387.7,3387.4,1.3286]
[1735452032912,2.3186514,3387.7,3387.5,0.29571]
[1735452033720,2.3186514,3387.7,3387.6,0.29571]
[1735452035121,2.3186514,3387.7,3387.6,1.34169646]
[1735452036417,2.7648514,3387.8,3387.6,1.04598646]
[1735452036623,2.7648514,3387.8,3387.7,0.2957]
[1735452037421,2.7648514,3387.8,3387.6,1.34168646]
[1735452038824,2.7648514,3387.8,3387.6,1.04598646]
[1735452039029,3.0605514,3387.8,3387.5,3.50351]
[1735452039724,3.81083786,3387.8,3387.4,1.3286]
[1735452039929,0.29571,3387.5,3387.4,0.8919]
[1735452040427,0.73451,3387.5,3387.4,0.8919]
[1735452041029,0.73451,3387.5,3387.4,1.18762]
[1735452041231,4.21306093,3387.5,3387.4,1.18762]
[1735452042524,0.4388,3387.5,3387.4,1.18762]
[1735452043529,0.4388,3387.5,3387.4,1.61702]
[1735452046029,3.9151625,3387.5,3387.4,1.61702]
[1735452047331,0.4388,3387.5,3387.4,1.61702]
[1735452047931,0.73451,3387.5,3387.4,1.61702]
[1735452048934,4.2108725,3387.5,3387.4,1.61702]
[1735452049932,4.2108725,3387.5,3387.4,1.3213]
[1735452050536,5.37542334,3387.5,3387.4,1.3213]
[1735452053444,0.73451,3387.5,3387.4,1.3213]
[1735452054246,0.73451,3387.5,3387.4,0.8919]
[1735452054436,0.73451,3387.5,3387.4,0.4579]
[1735452055336,0.4388,3387.5,3386.9,0.4256]
[1735452055643,0.29576,3387.0,3386.9,0.72137]
[1735452056247,3.77718165,3387.0,3386.9,0.72137]
[1735452056446,3.77718165,3387.0,3386.9,0.4256]
[1735452057546,0.29577,3386.9,3386.8,0.8958]
[1735452057744,0.71687,3386.9,3386.8,0.8958]
[1735452058046,0.71687,3386.9,3386.8,0.444]
[1735452058341,0.29578,3386.7,3386.6,0.8796]
[1735452059944,0.29578,3386.7,3386.6,0.4263]
[1735452060247,4.93859844,3386.7,3386.6,0.4263]
[1735452061145,4.93859844,3386.7,3386.6,1.47228646]
[1735452061648,0.29578,3386.7,3386.6,1.47228646]
[1735452063047,5.81309171,3386.8,3386.7,0.29578]
[1735452063246,5.81309171,3386.8,3386.6,1.47228646]
[1735452063439,5.81309171,3386.8,3386.6,1.76807646]
[1735452063640,5.81309171,3386.8,3386.6,1.47228646]
[1735452063837,5.81309171,3386.8,3386.6,0.4263]
[1735452063838,0.29578,3386.7,3386.6,0.4263]
[1735452065849,4.93560644,3386.7,3386.6,0.4263]
[1735452066250,4.93560644,3386.7,3386.6,1.47228646]
[1735452067152,0.29578,3386.7,3386.6,1.47228646]
[1735452069149,5.07532644,3386.8,3386.6,1.47228646]
[1735452069354,5.37110644,3386.8,3386.6,1.76807646]
[1735452069656,5.37110644,3386.8,3386.6,1.47228646]
[1735452072450,5.37110644,3386.8,3386.6,1.34177646]
[1735452072649,0.29578,3386.7,3386.6,1.04598646]
[1735452072850,0.29578,3386.7,3386.6,1.50358646]
[1735452075256,3.47697268,3386.7,3386.6,1.50358646]
[1735452075457,3.47697268,3386.7,3386.6,1.79937646]
[1735452077764,3.47697268,3386.8,3386.6,1.79937646]
[1735452078960,3.47697268,3386.8,3386.6,1.50358646]
[1735452079159,3.47697268,3386.8,3386.6,1.79937646]
[1735452079463,2.31856784,3386.7,3386.6,1.79937646]
[1735452081962,2.31856784,3386.7,3386.6,0.75339]
[1735452082466,2.31856784,3386.7,3386.6,1.79937646]
[1735452085869,2.31856784,3386.8,3386.6,1.50358646]
[1735452086057,2.31856784,3386.8,3386.7,0.29578]
[1735452086368,1.61686784,3386.8,3386.7,0.29578]
[1735452087370,3.47697268,3387.2,3387.1,0.29575]
[1735452087669,3.47697268,3387.2,3387.1,1.34173646]
[1735452097277,3.47697268,3387.2,3387.1,4.54953646]
[1735452097879,3.47697268,3387.2,3387.1,1.34173646]
[1735452098171,3.47697268,3387.2,3387.1,4.54953646]
[1735452100780,3.93367268,3387.3,3387.2,0.29574]
[1735452100981,3.93367268,3387.3,3387.2,0.72384]
[1735452103573,3.93367268,3387.3,3387.2,0.4281]
[1735452103886,3.93367268,3387.3,3387.2,0.72384]
[1735452104074,4.36007268,3387.3,3387.2,0.72384]
[1735452107586,0.8831,3387.3,3387.2,0.72384]
[1735452118486,0.8831,3387.3,3387.2,0.4281]
[1735452118790,0.8831,3387.3,3387.2,0.72384]
[1735452120190,0.8831,3387.3,3387.1,1.04598646]
[1735452120382,0.29574,3387.2,3387.1,1.04598646]
[1735452121993,4.93556644,3387.2,3387.1,1.04598646]
[1735452124897,0.29574,3387.2,3387.1,1.04598646]
[1735452125799,6.69619171,3387.3,3387.1,1.04598646]
[1735452125997,10.19973171,3387.3,3387.1,1.04598646]
[1735452126897,6.99193171,3387.3,3387.1,1.04598646]
[1735452127999,9.69623226,3387.2,3387.1,1.04598646]
[1735452131197,9.69623226,3387.2,3387.1,1.34173646]
[1735452134704,3.88314055,3387.2,3387.1,5.98743221]
[1735452135907,3.88314055,3387.2,3387.1,6.31935168]
[1735452135908,3.48795146,3387.2,3387.1,6.31935168]
[1735452137706,3.48795146,3387.2,3387.1,9.52715168]
[1735452138605,3.48795146,3387.3,3387.2,0.29574]
[1735452139612,3.48795146,3387.3,3387.2,5.27335522]
[1735452140908,3.48795146,3387.3,3387.2,8.48115522]
[1735452142409,3.48795146,3387.4,3387.2,7.86014616]
[1735452142713,3.48795146,3387.4,3387.3,1.80931646]
[1735452145819,3.48795146,3387.4,3387.3,6.80931646]
[1735452146112,3.32597958,3387.4,3387.3,6.80931646]
[1735452146310,3.32597958,3387.4,3387.3,1.80931646]
[1735452146713,0.4489,3387.9,3387.8,0.29569]
[1735452147017,0.4489,3387.9,3387.8,1.34167646]
[1735452147410,0.4489,3387.9,3387.8,1.79187646]
[1735452150218,0.4489,3387.9,3387.8,0.74589]
[1735452150419,0.4489,3387.9,3387.8,1.79187646]
[1735452152112,0.4489,3387.9,3387.8,0.29569]
[1735452153022,0.873,3387.9,3387.7,3.2078]
[1735452153314,1.16868,3387.9,3387.7,3.2078]
[1735452153515,0.873,3387.9,3387.7,3.50349]
[1735452153820,0.873,3387.9,3387.7,0.29569]
[1735452155312,0.873,3387.9,3387.6,1.04598646]
[1735452155514,0.873,3387.9,3387.7,0.29569]
[1735452156118,0.873,3387.9,3387.6,1.04598646]
[1735452156310,0.873,3387.9,3387.8,0.29569]
[1735452157815,0.873,3387.9,3387.7,0.29569]
[1735452159123,0.873,3387.9,3387.8,0.29569]
[1735452159514,5.52360195,3387.9,3387.8,0.29569]
[1735452161118,0.873,3387.9,3387.8,0.29569]
[1735452162919,0.873,3387.9,3387.8,1.34167646]
[1735452171423,0.873,3387.9,3387.7,0.29569]
[1735452171628,0.873,3387.9,3387.6,1.34168646]
[1735452171930,0.873,3387.9,3387.6,1.04598646]
[1735452171931,4.65060195,3387.9,3387.6,1.04598646]
[1735452172118,4.65060195,3387.9,3387.8,1.34167646]
[1735452172525,4.65060195,3387.9,3387.8,1.76707646]
[1735452173829,0.4336,3388.0,3387.9,0.29568]
[1735452174727,4.65060195,3388.2,3387.8,1.47138646]
[1735452174728,4.65060195,3388.2,3388.1,0.29566]
[1735452175027,4.65060195,3388.2,3388.1,4.54944646]
[1735452176132,0.442,3388.5,3388.4,0.29564]
[1735452176330,0.442,3388.5,3388.4,1.34162646]
[1735452178126,0.442,3388.5,3388.4,0.29564]
[1735452180127,5.09260195,3388.5,3388.4,0.29564]
[1735452181931,5.09260195,3388.5,3388.3,0.4405]
[1735452182126,1.04598646,3388.4,3388.1,3.2078]
[1735452182332,1.34163646,3388.2,3388.1,3.2078]
[1735452183436,0.4495,3388.3,3388.1,3.2078]
[1735452183632,0.74515,3388.3,3388.1,3.2078]
[1735452184033,6.55824171,3388.3,3387.9,1.48528646]
[1735452184231,6.55824171,3388.3,3388.1,0.29566]
[1735452185023,0.29567,3388.1,3387.9,3.50347]
[1735452185224,4.54944646,3388.2,3387.9,0.29567]
[1735452185426,0.4368,3388.0,3387.7,1.04598646]
[1735452185628,0.29568,3387.9,3387.7,0.2957]
[1735452186233,0.4368,3388.0,3387.7,1.04598646]
[1735452186433,0.4368,3388.0,3387.9,1.34166646]
[1735452187137,6.24989171,3388.0,3387.9,1.34166646]
[1735452188138,4.31241448,3388.0,3387.9,1.34166646]
[1735452189435,10.12550619,3388.0,3387.9,1.34166646]
[1735452192241,10.12550619,3388.0,3387.9,0.29568]
[1735452197837,10.12550619,3388.0,3387.9,1.34166646]
[1735452199234,10.12550619,3388.0,3387.9,2.22226646]
[1735452200346,5.07926589,3388.0,3387.9,2.22226646]
[1735452206746,5.07926589,3388.0,3387.9,1.17628]
[1735452206946,5.07926589,3388.0,3387.9,0.29568]
[1735452207153,5.07926589,3388.0,3387.9,1.34166646]
[1735452211954,5.07926589,3388.0,3387.9,1.04598646]
[1735452212355,5.07926589,3388.0,3387.9,1.34166646]
[1735452213258,5.07926589,3388.0,3387.9,1.04598646]
[1735452213459,5.07926589,3388.0,3387.9,1.34166646]
[1735452220263,5.07926589,3388.0,3387.9,0.29568]
[1735452220465,5.07926589,3388.0,3387.9,1.34166646]
[1735452222064,0.4368,3388.0,3387.9,1.34166646]
[1735452224666,4.31132349,3388.0,3387.9,1.34166646]
[1735452226270,10.1244152,3388.0,3387.9,1.34166646]
[1735452230069,4.31132349,3388.0,3387.9,1.34166646]
[1735452231674,0.4368,3388.0,3387.9,1.34166646]
[1735452233178,6.24304203,3388.0,3387.9,1.34166646]
[1735452233368,10.11756552,3388.0,3387.9,1.34166646]
[1735452235374,10.11756552,3388.0,3387.9,1.04598646]
[1735452235673,4.31132349,3388.0,3387.9,1.04598646]
[1735452235977,4.31132349,3388.0,3387.6,5.55317355]
[1735452235978,4.60700349,3388.0,3387.7,0.29569]
[1735452236178,0.29568,3387.9,3387.7,0.29569]
[1735452236475,0.4543,3387.8,3387.7,0.29569]
[1735452237268,10.13496523,3387.8,3387.7,0.29569]
[1735452238768,0.4543,3387.8,3387.7,0.29569]
[1735452240676,5.80614174,3387.9,3387.8,0.29569]
[1735452240871,5.80614174,3387.9,3387.8,1.34167646]
[1735452241568,9.6838347,3387.9,3387.8,1.34167646]
[1735452251278,0.29569,3387.8,3387.7,4.64867355]
[1735452252280,4.17338296,3387.8,3387.6,1.50148646]
[1735452252479,0.732,3387.7,3387.5,7.85647355]
[1735452252782,0.732,3387.7,3387.5,8.90246001]
[1735452252983,0.4258,3387.6,3387.5,8.90246001]
[1735452253586,0.4258,3387.6,3387.5,9.19817001]
[1735452253779,0.72151,3387.6,3387.5,4.64867355]
[1735452253981,0.29572,3387.5,3387.3,5.99039001]
[1735452254985,0.29572,3387.4,3387.3,5.69466001]
[1735452255377,9.98208609,3387.4,3387.3,1.04598646]
[1735452258686,9.68636609,3387.4,3387.3,1.04598646]
[1735452259890,3.87769296,3387.4,3387.3,1.04598646]
[1735452261793,4.63790869,3387.4,3387.3,1.04598646]
[1735452262687,4.93362869,3387.4,3387.3,1.04598646]
[1735452263790,4.63790869,3387.4,3387.3,1.04598646]
[1735452264798,4.93362869,3387.4,3387.3,1.04598646]
[1735452266287,4.63790869,3387.4,3387.3,1.04598646]
[1735452267093,4.93362869,3387.4,3387.3,1.04598646]
[1735452269587,0.29572,3387.4,3387.3,1.04598646]
[1735452269787,4.93362869,3387.5,3387.3,1.04598646]
[1735452270193,0.29572,3387.4,3387.3,1.04598646]
[1735452271088,4.93362869,3387.4,3387.3,1.04598646]
[1735452272895,0.29572,3387.4,3387.3,1.04598646]
[1735452273896,4.63790869,3387.5,3387.3,1.04598646]
[1735452274093,4.93362869,3387.5,3387.3,1.04598646]
[1735452274894,0.29572,3387.4,3387.3,1.04598646]
[1735452275992,4.93362869,3387.5,3387.3,1.04598646]
[1735452277000,0.29572,3387.4,3387.3,1.04598646]
[1735452277491,0.29573,3387.3,3387.2,0.4402]
[1735452278894,0.29573,3387.3,3387.0,3.50355]
[1735452279196,0.8469,3387.2,3387.0,3.2078]
[1735452279496,0.29575,3387.1,3387.0,3.2078]
[1735452280702,1.89288646,3387.2,3386.9,0.4267]
[1735452280703,6.53079515,3387.2,3386.9,0.4267]
[1735452280999,0.29576,3387.0,3386.9,0.4267]
[1735452282290,3.77082761,3387.0,3386.9,0.4267]
[1735452283794,0.29578,3386.8,3386.7,3.2078]
[1735452284602,0.75288,3386.8,3386.7,3.2078]
[1735452284799,5.39078869,3386.8,3386.7,3.2078]
[1735452285801,0.75288,3386.8,3386.7,3.2078]
[1735452288602,5.38198939,3386.8,3386.7,3.2078]
[1735452290294,5.08620939,3386.8,3386.6,0.29579]
[1735452290495,0.4545,3386.7,3386.4,1.47538646]
[1735452290698,0.4545,3386.7,3385.0,2.34047196]
[1735452290699,1.04598646,3386.6,3385.7,7.85647355]
[1735452290893,1.04598646,3386.2,3385.9,0.29585]
[1735452291102,1.04598646,3386.2,3385.8,1.50668646]
[1735452291300,0.29585,3386.0,3385.9,0.29585]
[1735452291803,0.75524,3386.1,3386.0,0.29585]
[1735452292498,0.29585,3385.9,3385.8,0.4607]
[1735452292707,1.34183646,3385.9,3385.8,0.4607]
[1735452293199,0.29585,3385.9,3385.8,0.75656]
[1735452293402,0.29585,3385.9,3385.8,0.4607]
[1735452296303,0.29586,3385.8,3385.7,3.2078]
[1735452297701,0.29586,3385.8,3385.4,0.2959]
[1735452297702,3.47222005,3385.8,3385.4,0.2959]
[1735452297905,3.47222005,3385.8,3385.4,3.5037]
[1735452297906,0.29589,3385.5,3385.4,3.5037]
[1735452298398,0.29589,3385.5,3385.4,4.54968646]
[1735452300501,2.60792526,3385.8,3385.6,0.29587]
[1735452300710,2.60792526,3385.8,3385.7,1.48198646]
[1735452300909,2.60792526,3385.8,3385.7,2.34738646]
[1735452301109,2.31205526,3385.8,3385.7,2.64325646]
[1735452301305,2.60791526,3385.8,3385.7,2.64325646]
[1735452303210,2.60791526,3385.8,3385.7,0.436]
[1735452303411,0.29586,3385.8,3385.7,0.436]
[1735452305009,2.60791526,3385.8,3385.7,0.436]
[1735452305209,2.60791526,3385.8,3385.7,0.73187]
[1735452305905,0.29586,3385.8,3385.7,1.17637]
[1735452306311,0.29586,3385.8,3385.7,0.8805]
[1735452309511,0.29586,3385.8,3385.7,1.17637]
[1735452309814,0.29586,3385.8,3385.7,0.8805]
[1735452310709,0.29586,3385.8,3385.7,2.22235646]
[1735452311108,0.29586,3385.8,3385.7,1.92648646]
[1735452314312,0.29586,3385.8,3385.7,0.436]
[1735452315909,2.31205526,3385.9,3385.7,0.73187]
[1735452316115,2.31205526,3385.9,3385.8,1.34184646]
[1735452316816,2.60790526,3386.0,3385.9,0.29585]
[1735452317718,0.29585,3386.0,3385.9,0.29585]
[1735452319115,0.29585,3385.9,3385.8,1.34184646]
[1735452319915,2.31205526,3386.1,3385.7,0.8901]
[1735452320217,0.29586,3385.8,3385.7,1.18597]
[1735452321110,0.29586,3385.8,3385.7,0.8901]
[1735452321414,0.29586,3385.8,3385.7,0.436]
[1735452323311,3.76808005,3385.8,3385.7,0.436]
[1735452326223,0.29586,3385.8,3385.7,0.436]
[1735452328720,4.92496939,3385.8,3385.7,0.436]
[1735452330122,9.9738556,3385.8,3385.7,0.436]
[1735452330519,9.9738556,3385.8,3385.7,1.77785646]
[1735452330721,9.9738556,3385.8,3385.7,1.92978646]
[1735452331022,9.9738556,3385.8,3385.7,2.22565646]
[1735452331621,0.29586,3385.8,3385.7,2.22565646]
[1735452332822,9.9738556,3385.8,3385.7,2.22565646]
[1735452333024,9.9738556,3385.8,3385.7,1.48198646]
[1735452333727,4.16518247,3385.8,3385.7,0.436]
[1735452335324,0.29586,3385.8,3385.7,0.436]
[1735452336526,4.16518247,3385.8,3385.7,0.436]
[1735452346544,11.14840228,3385.8,3385.7,0.436]
[1735452348940,17.35568615,3385.8,3385.7,0.436]
[1735452360639,17.05982615,3385.8,3385.5,0.29589]
[1735452360841,0.29588,3385.6,3385.5,0.29589]
[1735452362753,4.16520247,3385.6,3385.5,0.29589]
[1735452367351,4.16520247,3385.6,3385.4,0.4428]
[1735452367552,0.29589,3385.5,3385.4,0.73869]
[1735452367753,0.72689,3385.5,3385.4,0.73869]
[1735452368260,4.59621247,3385.5,3385.4,0.73869]
[1735452368851,4.59621247,3385.5,3385.4,0.4428]
[1735452369059,0.29591,3385.3,3385.2,4.64867355]
[1735452369958,0.29592,3385.2,3385.1,4.94459355]
[1735452370457,0.29592,3385.2,3385.1,4.64867355]
[1735452371354,4.91530893,3385.2,3384.8,4.64867355]
[1735452371659,1.34192646,3384.9,3384.8,4.64867355]
[1735452371959,4.54972646,3384.9,3384.8,4.64867355]
[1735452372156,4.54972646,3384.9,3384.8,1.63485972]
[1735452372756,8.12310893,3384.9,3384.3,6.97301033]
[1735452372959,1.34197646,3384.4,3384.3,6.97301033]
[1735452373956,1.79227646,3384.4,3384.3,6.97301033]